lending/lending_fUSD_20241214
["ID","MTS","AMOUNT","RATE_DAILY","PERIOD"]
[345371443,1734198661107,-100000.0,0.000222,2]
[345371444,1734198661116,-100000.0,0.000222,2]
[345371445,1734198661125,-100000.0,0.000222,2]
[345371446,1734198661134,-100000.0,0.000222,2]
[345371447,1734198661143,-100000.0,0.000222,2]
[345371448,1734198661155,-100000.0,0.000222,2]
[345371449,1734198661165,-100000.0,0.000222,2]
[345371450,1734198661174,-100000.0,0.000222,2]
[345371451,1734198661183,-100000.0,0.000222,2]
[345371452,1734198661192,-100000.0,0.000222,2]
[345371453,1734198661203,-100000.0,0.000222,2]
[345371454,1734198661212,-100000.0,0.000222,2]
[345371455,1734198661221,-100000.0,0.000222,2]
[345371456,1734198661230,-100000.0,0.000222,2]
[345371457,1734198661239,-100000.0,0.000222,2]
[345371458,1734198661248,-100000.0,0.000222,2]
[345371459,1734198661257,-100000.0,0.000222,2]
[345371460,1734198661267,-100000.0,0.000222,2]
[345371461,1734198661276,-100000.0,0.000222,2]
[345371462,1734198661285,-100000.0,0.000222,2]
[345371463,1734198661294,-100000.0,0.000222,2]
[345371464,1734198661303,-100000.0,0.000222,2]
[345371465,1734198661312,-100000.0,0.000222,2]
[345371466,1734198661329,-100000.0,0.000222,2]
[345371467,1734198661339,-100000.0,0.000222,2]
[345371468,1734198661349,-100000.0,0.000222,2]
[345371469,1734198661358,-100000.0,0.000222,2]
[345371470,1734198661367,-100000.0,0.000222,2]
[345371471,1734198661376,-100000.0,0.000222,2]
[345371472,1734198661385,-100000.0,0.000222,2]
[345371473,1734198661395,-100000.0,0.000222,2]
[345371474,1734198661404,-100000.0,0.000222,2]
[345371475,1734198661414,-100000.0,0.000222,2]
[345371476,1734198661423,-100000.0,0.000222,2]
[345371477,1734198661432,-100000.0,0.000222,2]
[345371478,1734198661442,-100000.0,0.000222,2]
[345371479,1734198661451,-100000.0,0.000222,2]
[345371480,1734198661461,-100000.0,0.000222,2]
[345371481,1734198661470,-100000.0,0.000222,2]
[345371482,1734198661479,-100000.0,0.000222,2]
[345371483,1734198661488,-100000.0,0.000222,2]
[345371484,1734198661497,-100000.0,0.000222,2]
[345371485,1734198661507,-100000.0,0.000222,2]
[345371486,1734198661516,-100000.0,0.000222,2]
[345371487,1734198661525,-100000.0,0.000222,2]
[345371488,1734198661535,-100000.0,0.000222,2]
[345371489,1734198661545,-100000.0,0.000222,2]
[345371490,1734198661554,-100000.0,0.000222,2]
[345371491,1734198661563,-100000.0,0.000222,2]
[345371492,1734198661578,-100000.0,0.000222,2]
[345371493,1734198661587,-74130.58841794,0.000222,2]
[345371494,1734198661596,-381.0,0.000222,10]
[345371495,1734198661606,-151.0,0.000222,7]
[345371496,1734198661615,-151.0,0.000222,7]
[345371497,1734198661624,-151.0,0.000222,7]
[345371498,1734198661633,-151.0,0.000222,7]
[345371499,1734198661642,-151.0,0.000222,7]
[345371500,1734198661652,-247.503814,0.000222,7]
[345371501,1734198661661,-177.996725,0.000222,7]
[345371502,1734198661670,-151.0,0.000222,7]
[345371503,1734198661679,-474.040776,0.000222,7]
[345371504,1734198661689,-474.040776,0.000222,7]
[345371505,1734198661698,-474.040776,0.000222,7]
[345371506,1734198661707,-474.040776,0.000222,7]
[345371507,1734198661716,-474.040776,0.000222,7]
[345371508,1734198661726,-474.040776,0.000222,7]
[345371509,1734198661735,-474.040776,0.000222,7]
[345371510,1734198661745,-474.040776,0.000222,7]
[345371511,1734198661754,-474.040776,0.000222,7]
[345371512,1734198661763,-474.040776,0.000222,7]
[345371513,1734198661772,-474.040776,0.000222,7]
[345371514,1734198661781,-474.040776,0.000222,7]
[345371515,1734198661790,-474.040776,0.000222,7]
[345371516,1734198661799,-474.040785,0.000222,7]
[345371517,1734198661808,-273.458626,0.000222,7]
[345371518,1734198661817,-273.458626,0.000222,7]
[345371519,1734198661832,-273.458626,0.000222,7]
[345371520,1734198661842,-273.458626,0.000222,7]
[345371521,1734198661851,-273.458626,0.000222,7]
[345371522,1734198661860,-273.458626,0.000222,7]
[345371523,1734198661870,-273.458626,0.000222,7]
[345371524,1734198661879,-273.458626,0.000222,7]
[345371525,1734198661889,-273.458626,0.000222,7]
[345371526,1734198661898,-273.458626,0.000222,7]
[345371527,1734198661908,-273.458626,0.000222,7]
[345371528,1734198661918,-273.458626,0.000222,7]
[345371529,1734198661927,-273.458626,0.000222,7]
[345371530,1734198661936,-273.458626,0.000222,7]
[345371531,1734198661946,-273.458626,0.000222,7]
[345371532,1734198661955,-273.458626,0.000222,7]
[345371533,1734198661965,-273.458626,0.000222,7]
[345371534,1734198661974,-273.458626,0.000222,7]
[345371535,1734198661983,-273.458626,0.000222,7]
[345371536,1734198661992,-273.45863,0.000222,7]
[345371537,1734198662002,-310.668635,0.000222,7]
[345371538,1734198662011,-310.668635,0.000222,7]
[345371539,1734198662021,-310.668635,0.000222,7]
[345371540,1734198662031,-310.668635,0.000222,7]
[345371541,1734198662040,-310.668635,0.000222,7]
[345371542,1734198662049,-310.668635,0.000222,7]
[345371543,1734198662058,-310.668635,0.000222,7]
[345371544,1734198662067,-310.668635,0.000222,7]
[345371545,1734198662088,-310.668635,0.000222,7]
[345371546,1734198662097,-310.668635,0.000222,7]
[345371547,1734198662106,-310.668635,0.000222,7]
[345371548,1734198662116,-310.668635,0.000222,7]
[345371549,1734198662125,-310.668635,0.000222,7]
[345371550,1734198662134,-310.668635,0.000222,7]
[345371551,1734198662142,-310.668635,0.000222,7]
[345371552,1734198662153,-310.668631,0.000222,7]
[345371553,1734198662162,-151.0,0.000222,7]
[345371554,1734198662171,-151.0,0.000222,7]
[345371555,1734198662180,-151.0,0.000222,7]
[345371556,1734198662189,-151.0,0.000222,7]
[345371557,1734198662198,-151.0,0.000222,7]
[345371558,1734198662207,-151.0,0.000222,7]
[345371559,1734198662216,-151.0,0.000222,7]
[345371560,1734198662225,-151.0,0.000222,7]
[345371561,1734198662234,-151.0,0.000222,7]
[345371562,1734198662243,-151.0,0.000222,7]
[345371563,1734198662252,-151.0,0.000222,7]
[345371564,1734198662261,-151.0,0.000222,7]
[345371565,1734198662270,-151.0,0.000222,7]
[345371566,1734198662279,-151.0,0.000222,7]
[345371567,1734198662289,-151.0,0.000222,7]
[345371568,1734198662298,-151.0,0.000222,7]
[345371569,1734198662307,-151.0,0.000222,7]
[345371570,1734198662316,-151.0,0.000222,7]
[345371571,1734198662342,-151.0,0.000222,7]
[345371572,1734198662351,-151.0,0.000222,7]
[345371573,1734198662361,-151.0,0.000222,7]
[345371574,1734198662370,-151.0,0.000222,7]
[345371575,1734198662379,-271.586018,0.000222,7]
[345371576,1734198662389,-151.0,0.000222,7]
[345371577,1734198662398,-151.0,0.000222,7]
[345371578,1734198662407,-151.0,0.000222,7]
[345371579,1734198662417,-151.0,0.000222,7]
[345371580,1734198662426,-151.716177,0.000222,7]
[345371581,1734198662435,-500.0,0.00022211,3]
[345371582,1734198662444,-700.0,0.00022211,3]
[345371583,1734198662454,-1276.0,0.00022211,3]
[345371584,1734198662463,-164.24183503,0.0002225,2]
[345371585,1734198662472,-14551.24164881,0.0002225,2]
[345371586,1734198662482,-1255.59347,0.00022288,7]
[345371587,1734198662491,-2095.23086229,0.00022288,7]
[345371588,1734198662500,-150.121423,0.00022298,7]
[345371589,1734198662509,-651.04,0.00022303,2]
[345371590,1734198662518,-187.5,0.00022375,2]
[345371591,1734198662527,-150.019,0.00022387,2]
[345371592,1734198662536,-5755.0,0.00022398,4]
[345371593,1734198662546,-150.121423,0.00022398,8]
[345371594,1734198662555,-193.41105487,0.000224,2]
[345371595,1734198662565,-2632.34,0.000224,31]
[345371596,1734198662575,-2632.34,0.000224,31]
[345371597,1734198662584,-2632.34,0.000224,31]
[345371598,1734198662593,-2632.34,0.000224,31]
[345371599,1734198662603,-2632.34,0.000224,31]
[345371600,1734198662612,-2632.34,0.000224,31]
[345371601,1734198662621,-2632.34,0.000224,31]
[345371602,1734198662630,-2632.34,0.000224,31]
[345371603,1734198662639,-2632.34,0.000224,31]
[345371604,1734198662648,-2632.34,0.000224,31]
[345371605,1734198662657,-2632.34,0.000224,31]
[345371606,1734198662666,-2632.34,0.000224,31]
[345371607,1734198662675,-2632.34,0.000224,31]
[345371608,1734198662685,-2632.34,0.000224,31]
[345371609,1734198662694,-2632.34,0.000224,31]
[345371610,1734198662703,-2632.34,0.000224,31]
[345371611,1734198662713,-164.24183503,0.000224,2]
[345371612,1734198662723,-2095.23,0.000224,7]
[345371613,1734198662732,-14551.24164881,0.000224,2]
[345371614,1734198662741,-324.71142507,0.000224,2]
[345371615,1734198662750,-960.0,0.00022403,2]
[345371616,1734198662760,-152.0,0.00022427,3]
[345371617,1734198662770,-176.75,0.00022433,2]
[345371618,1734198662779,-350.0,0.00022465,2]
[345371619,1734198662788,-347.44933964,0.00022465,2]
[345371620,1734198662797,-500.0,0.00022473,2]
[345371621,1734198662806,-500.0,0.00022473,2]
[345371622,1734198662815,-1000.0,0.00022481,2]
[345371623,1734198662830,-500.0,0.00022485,3]
[345371624,1734198662840,-700.0,0.00022485,3]
[345371625,1734198662849,-1276.0,0.00022485,3]
[345371626,1734198662858,-6049.6579678,0.00022485,2]
[345371627,1734198662870,-4780.165001,0.00022485,2]
[345371628,1734198662879,-3510.6720341,0.00022485,2]
[345371629,1734198662889,-2241.1790673,0.00022485,2]
[345371630,1734198662899,-971.6861005,0.00022485,2]
[345371631,1734198662908,-1255.59347,0.00022488,7]
[345371632,1734198662917,-11337.84716891,0.00022495,2]
[345371633,1734198662927,-150.121423,0.00022498,9]
[345371634,1734198662936,-12002.43683432,0.00022498,7]
[345371635,1734198662946,-30000.0,0.00022498,2]
[345371636,1734198662956,-3259642.97655591,0.000225,2]
[345371637,1734198663172,-2112.23884391,0.000225,2]
[345371638,1734198663184,-1212.45000005,0.000225,2]
[345371639,1734198663198,-6978.36361077,0.000225,2]
[345371640,1734198663419,-274.176,0.000225,2]
[345371641,1734198663431,-4470.63455545,0.000225,2]
[345371642,1734198663456,-2190.0,0.00021999,3]
[345371643,1734198663554,-281.0,0.00021999,3]
[345371644,1734198663567,-1930.07,0.00021999,3]
[345371645,1734198663585,-4401.07,0.00021999,3]
[345371646,1734198663596,-4401.07,0.00022099,3]
[345371647,1734198663606,-4401.07,0.00022198,3]
[345371648,1734198663616,-4401.07,0.00022199,3]
[345371649,1734198663626,-4401.07,0.00022199,3]
[345371650,1734198663636,-4401.07,0.00022199,3]
[345371651,1734198663645,-3946070.20662341,0.000225,2]
[345371652,1734198663659,-2049.22672955,0.000225,2]
[345371653,1734198663763,-153.0,0.00016912,2]
[345371654,1734198663773,-153.0,0.00016912,2]
[345371655,1734198663783,-153.0,0.00016912,2]
[345371656,1734198663792,-153.0,0.00016912,2]
[345371657,1734198663803,-150.0,0.00020952,2]
[345371658,1734198663812,-4401.07,0.00022199,3]
[345371659,1734198663822,-826.75200005,0.00022199,3]
[345371660,1734198663867,-47.91774388,0.00022199,3]
[345371661,1734198663879,-2194.20000015,0.00022199,3]
[345371662,1734198664215,-119.88741194,0.00016912,2]
[345371663,1734198664227,-33.11258806,0.00016912,2]
[345371664,1734198664237,-153.0,0.00016912,2]
[345371665,1734198664248,-153.0,0.00016912,2]
[345371666,1734198664257,-19586.1442068,0.000208,2]
[345371667,1734198664274,-963.953025,0.000208,2]
[345371668,1734198664286,-20250.86944722,0.000208,2]
[345371669,1734198664297,-46644.54668523,0.000208,2]
[345371670,1734198664306,-1332.20025592,0.00022199,3]
[345371671,1734198664316,-2047.25305914,0.00022199,3]
[345371673,1734198984966,152.52,0.00010137,2]
[345371674,1734199486545,2000.0,0.0002,120]
[345371675,1734199604021,156.41,0.00018947,30]
[345371676,1734199637130,-450.0,0.00013,2]
[345371677,1734199637150,-154.39,0.00013699,2]
[345371678,1734199637170,-500.0,0.00015,2]
[345371679,1734199637189,-188.45,0.0001513,2]
[345371680,1734199637210,-3557.0,0.000164,2]
[345371681,1734199637229,-150.0,0.00016423,2]
[345371682,1734199637249,-550.0,0.00017,2]
[345371683,1734199637271,-152.52,0.00018065,2]
[345371684,1734199637308,-250.0,0.00018678,2]
[345371685,1734199637328,-300.0,0.00018727,2]
[345371686,1734199637348,-3453.97079246,0.00018728,2]
[345371687,1734199756165,-1061.58,0.00016947,2]
[345371688,1734199756186,-2809.185584,0.00018728,2]
[345371689,1734199761139,-1708.57362354,0.00018728,2]
[345371690,1734199761161,-1000.0,0.00018787,2]
[345371691,1734199761182,-5203.07,0.0001879,2]
[345371692,1734199761204,-639.28,0.00018795,2]
[345371693,1734199763088,-1069.79,0.00018818,2]
[345371694,1734199763109,-300.0,0.00018841,2]
[345371695,1734199763129,-174.08,0.00018841,2]
[345371696,1734199763149,-250.0,0.00018888,2]
[345371697,1734199768105,-200.0,0.00018933,2]
[345371698,1734199768126,-1380.64,0.0001896,2]
[345371703,1734199831885,-723.68,0.00019,2]
[345371704,1734199831895,-600.0,0.00019,2]
[345371705,1734199831905,-200.0,0.00019008,2]
[345371706,1734199831914,-498.0,0.00019036,2]
[345371707,1734199831923,-46943.6,0.00019037,2]
[345371708,1734199831932,-186.14,0.00019061,2]
[345371709,1734199831942,-1102.47,0.00019111,2]
[345371710,1734199831950,-454.87,0.00019111,2]
[345371711,1734199831960,-23900.0,0.00019183,2]
[345371712,1734199831970,-1061.58,0.00019211,2]
[345371713,1734199831979,-250.0,0.00019311,2]
[345371714,1734199831988,-923.09,0.00019338,2]
[345371715,1734199831998,-500.0,0.00019469,2]
[345371716,1734199832008,-614.84127204,0.00019469,2]
[345371717,1734199832018,-500.0,0.00019469,2]
[345371718,1734199832027,-500.0,0.00019469,2]
[345371719,1734199832042,-493.4524523,0.00019469,2]
[345371720,1734199832054,-166.67,0.0001947,2]
[345371721,1734199832063,-12412.5,0.00019508,2]
[345371722,1734199832072,-1102.47,0.00019818,2]
[345371723,1734199832081,-454.87,0.00019818,2]
[345371724,1734199832090,-4395.6,0.00019818,2]
[345371725,1734199832100,-159.67,0.00019873,2]
[345371726,1734199832110,-1805.17,0.00020098,2]
[345371727,1734199832119,-1805.17,0.00020103,2]
[345371728,1734199832129,-1805.17,0.00020108,2]
[345371729,1734199832138,-1805.17,0.00020114,2]
[345371730,1734199832148,-1805.17,0.00020119,2]
[345371731,1734199832157,-1805.17,0.00020124,2]
[345371732,1734199832166,-1805.17,0.00020129,2]
[345371733,1734199832176,-1805.17,0.00020135,2]
[345371734,1734199832186,-1805.17,0.0002014,2]
[345371735,1734199832196,-1805.17,0.00020145,2]
[345371736,1734199832205,-1805.17,0.00020151,2]
[345371737,1734199832215,-1805.17,0.00020156,2]
[345371739,1734199832225,-1805.17,0.00020161,2]
[345371741,1734199832235,-1805.17,0.00020166,2]
[345371743,1734199832244,-1805.17,0.00020172,2]
[345371744,1734199832254,-1805.17,0.00020177,2]
[345371745,1734199832263,-1805.17,0.00020182,2]
[345371746,1734199832273,-1805.17,0.00020188,2]
[345371747,1734199832283,-1501.94,0.00020188,2]
[345371748,1734199832295,-9984.37,0.00020188,2]
[345371749,1734199832304,-150.0,0.00020188,2]
[345371750,1734199832315,-1099.0,0.00020188,2]
[345371751,1734199832324,-1805.17,0.00020193,2]
[345371753,1734199832334,-1805.17,0.00020198,2]
[345371755,1734199832343,-1102.47,0.00020525,2]
[345371757,1734199832353,-454.87,0.00020525,2]
[345371759,1734199832363,-824.1773,0.000207,2]
[345371761,1734199832372,-14830.3652,0.000207,2]
[345371763,1734199832382,-754.876,0.000207,2]
[345371765,1734199832391,-38319.943062,0.000208,2]
[345371766,1734199832400,-2072.861,0.000208,2]
[345371769,1734199832410,-5710.615,0.000208,2]
[345371770,1734199832419,-989.81,0.00020851,2]
[345371772,1734199832429,-200.0,0.00020867,2]
[345371774,1734199832438,-632.9,0.00020884,2]
[345371776,1734199832447,-8912.67357638,0.000209,2]
[345371779,1734199832460,-2094.7,0.000209,2]
[345371781,1734199832474,-900.14802478,0.000209,2]
[345371784,1734199832488,-5470.68977974,0.000209,2]
[345371786,1734199832499,-33715.0460361,0.000209,2]
[345371788,1734199832508,-199.3504,0.000209,2]
[345371790,1734199832517,-155.29032,0.000209,2]
[345371792,1734199832526,-549.37905127,0.0002091,5]
[345371793,1734199832535,-188.99919927,0.0002091,2]
[345371796,1734199832547,-549.37905127,0.00020914,5]
[345371798,1734199832560,-549.37905127,0.00020921,5]
[345371799,1734199832570,-549.37905127,0.00020935,5]
[345371802,1734199832579,-549.37905127,0.00020941,5]
[345371803,1734199832588,-942.51,0.00020941,2]
[345371805,1734199832599,-549.37905127,0.00020945,5]
[345371807,1734199832608,-324.71142507,0.00020992,2]
[345371810,1734199832618,-5000.0,0.00020992,2]
[345371812,1734199832627,-2000.0,0.00021,2]
[345371814,1734199832637,-650.0,0.00021,2]
[345371816,1734199832648,-63866.571771,0.00021,2]
[345371818,1734199832657,-2000.0,0.0002101,2]
[345371820,1734199832667,-3618.535703,0.0002102,2]
[345371822,1734199832678,-150.0,0.00021042,2]
[345371824,1734199832687,-150.661,0.00021042,2]
[345371826,1734199832696,-153.691,0.00021092,2]
[345371828,1734199832705,-1263.0,0.00021092,2]
[345371830,1734199832714,-564.0,0.00021092,2]
[345371831,1734199832723,-482.365,0.00021092,2]
[345371833,1734199832733,-1895.0,0.00021092,2]
[345371835,1734199832742,-929.0,0.00021092,2]
[345371837,1734199832751,-817.0,0.00021092,2]
[345371839,1734199832760,-3765.0,0.00021092,2]
[345371841,1734199832769,-1254.0,0.00021092,2]
[345371843,1734199832778,-339.84473752,0.00021092,10]
[345371845,1734199832787,-1816.439,0.00021092,2]
[345371847,1734199832802,-535.0,0.00021092,2]
[345371849,1734199832811,-500.0,0.00021095,3]
[345371851,1734199832820,-500.0,0.00021095,3]
[345371853,1734199832829,-500.0,0.00021095,3]
[345371855,1734199832838,-500.0,0.00021095,3]
[345371857,1734199832847,-500.0,0.00021095,3]
[345371859,1734199832857,-500.0,0.00021095,3]
[345371861,1734199832866,-500.0,0.00021095,3]
[345371863,1734199832876,-500.0,0.00021095,3]
[345371865,1734199832885,-500.0,0.00021095,3]
[345371867,1734199832895,-500.0,0.00021095,3]
[345371869,1734199832904,-500.0,0.00021095,3]
[345371871,1734199832913,-500.0,0.00021095,3]
[345371873,1734199832922,-500.0,0.00021095,3]
[345371875,1734199832931,-500.0,0.00021095,3]
[345371877,1734199832940,-500.26541667,0.00021095,3]
[345371879,1734199832950,-500.0,0.00021095,3]
[345371881,1734199832960,-500.0,0.00021095,3]
[345371883,1734199832969,-500.0,0.00021095,3]
[345371885,1734199832978,-500.0,0.00021095,3]
[345371887,1734199832988,-500.0,0.00021095,3]
[345371889,1734199832997,-500.0,0.00021095,3]
[345371891,1734199833007,-621.41796654,0.00021095,3]
[345371893,1734199833017,-500.0,0.00021095,3]
[345371895,1734199833028,-584.74,0.00021095,3]
[345371897,1734199833037,-500.0,0.00021095,3]
[345371899,1734199833054,-500.0,0.00021095,3]
[345371901,1734199833064,-500.0,0.00021095,3]
[345371903,1734199833074,-303.92024624,0.00021095,3]
[345371905,1734199833083,-500.0,0.00021095,3]
[345371907,1734199833093,-500.0,0.00021095,3]
[345371909,1734199833103,-557.63267015,0.00021095,3]
[345371911,1734199833112,-500.0,0.00021095,3]
[345371913,1734199833122,-637.96658584,0.00021095,3]
[345371915,1734199833132,-500.0,0.00021095,3]
[345371917,1734199833142,-500.0,0.00021095,3]
[345371919,1734199833152,-500.0,0.00021095,3]
[345371921,1734199833162,-500.0,0.00021095,3]
[345371924,1734199833172,-500.0,0.00021095,3]
[345371925,1734199833182,-500.0,0.00021095,3]
[345371927,1734199833192,-500.0,0.00021095,3]
[345371929,1734199833202,-500.0,0.00021095,3]
[345371932,1734199833212,-500.0,0.00021095,3]
[345371934,1734199833221,-526.60132679,0.00021095,3]
[345371936,1734199833231,-500.0,0.00021095,3]
[345371938,1734199833241,-500.0,0.00021095,3]
[345371940,1734199833250,-568.8,0.00021095,3]
[345371941,1734199833259,-500.0,0.00021095,3]
[345371944,1734199833269,-500.0,0.00021095,3]
[345371946,1734199833278,-500.0,0.00021095,3]
[345371948,1734199833288,-500.0,0.00021095,3]
[345371950,1734199833306,-633.74467135,0.00021095,3]
[345371951,1734199833316,-500.0,0.00021095,3]
[345371954,1734199833325,-500.0,0.00021095,3]
[345371955,1734199833335,-500.0,0.00021095,3]
[345371958,1734199833345,-176.91,0.00021095,3]
[345371960,1734199833355,-500.0,0.00021095,3]
[345371962,1734199833365,-500.0,0.00021095,3]
[345371964,1734199833374,-500.0,0.00021095,3]
[345371966,1734199833384,-500.0,0.00021095,3]
[345371968,1734199833394,-500.0,0.00021095,3]
[345371970,1734199833404,-500.0,0.00021095,3]
[345371972,1734199833413,-500.0,0.00021095,3]
[345371974,1734199833423,-597.36922308,0.00021095,3]
[345371975,1734199833433,-500.0,0.00021095,3]
[345371977,1734199833442,-500.0,0.00021095,3]
[345371979,1734199833451,-163.04053511,0.00021095,3]
[345371981,1734199833461,-500.0,0.00021095,3]
[345371983,1734199833470,-502.64592839,0.00021095,3]
[345371985,1734199833480,-500.0,0.00021095,3]
[345371987,1734199833489,-500.0,0.00021095,3]
[345371989,1734199833498,-500.0,0.00021095,3]
[345371991,1734199833507,-505.65422026,0.00021095,3]
[345371993,1734199833516,-448.63053418,0.00021095,3]
[345371995,1734199833526,-3768.52734426,0.00021095,3]
[345371997,1734199833535,-500.0,0.00021095,3]
[345371999,1734199833549,-500.0,0.00021095,3]
[345372001,1734199833562,-504.43125615,0.00021095,3]
[345372003,1734199833571,-500.0,0.00021095,3]
[345372005,1734199833581,-500.0,0.00021095,3]
[345372007,1734199833590,-500.0,0.00021095,3]
[345372009,1734199833601,-500.0,0.00021095,3]
[345372011,1734199833610,-500.0,0.00021095,3]
[345372012,1734199833619,-500.0,0.00021095,3]
[345372013,1734199833628,-500.0,0.00021095,3]
[345372014,1734199833637,-395.36538706,0.00021095,3]
[345372015,1734199833647,-500.0,0.00021095,3]
[345372016,1734199833657,-686.17439872,0.00021095,3]
[345372017,1734199833666,-504.29664359,0.00021095,3]
[345372018,1734199833675,-500.0,0.00021095,3]
[345372019,1734199833684,-500.0,0.00021095,3]
[345372020,1734199833692,-501.5544955,0.00021095,3]
[345372021,1734199833702,-500.0,0.00021095,3]
[345372022,1734199833710,-617.90425786,0.00021095,3]
[345372023,1734199833719,-500.0,0.00021095,3]
[345372025,1734199833729,-508.86986978,0.00021095,3]
[345372027,1734199833739,-500.0,0.00021095,3]
[345372029,1734199833748,-500.0,0.00021095,3]
[345372031,1734199833757,-219.71571473,0.00021095,3]
[345372033,1734199833766,-500.0,0.00021095,3]
[345372035,1734199833775,-500.0,0.00021095,3]
[345372037,1734199833784,-500.0,0.00021095,3]
[345372039,1734199833798,-500.0,0.00021095,3]
[345372041,1734199833808,-500.0,0.00021095,3]
[345372043,1734199833817,-500.0,0.00021095,3]
[345372045,1734199833827,-500.0,0.00021095,3]
[345372047,1734199833837,-500.0,0.00021095,3]
[345372049,1734199833847,-500.0,0.00021095,3]
[345372051,1734199833856,-500.0,0.00021095,3]
[345372053,1734199833865,-206.06598866,0.00021095,3]
[345372055,1734199833874,-500.0,0.00021095,3]
[345372057,1734199833884,-500.0,0.00021095,3]
[345372059,1734199833893,-500.0,0.00021095,3]
[345372061,1734199833903,-500.0,0.00021095,3]
[345372063,1734199833912,-500.0,0.00021095,3]
[345372065,1734199833921,-500.0,0.00021095,3]
[345372067,1734199833931,-500.0,0.00021095,3]
[345372069,1734199833940,-500.0,0.00021095,3]
[345372071,1734199833949,-500.0,0.00021095,3]
[345372073,1734199833959,-500.0,0.00021095,3]
[345372075,1734199833968,-500.0,0.00021095,3]
[345372077,1734199833978,-399.8815992,0.00021095,3]
[345372079,1734199833987,-521.69728805,0.00021095,3]
[345372081,1734199833997,-500.0,0.00021095,3]
[345372083,1734199834007,-500.0,0.00021095,3]
[345372085,1734199834016,-534.48,0.00021095,3]
[345372087,1734199834026,-500.0,0.00021095,3]
[345372089,1734199834035,-500.0,0.00021095,3]
[345372091,1734199834050,-500.0,0.00021095,3]
[345372093,1734199834060,-500.0,0.00021095,3]
[345372095,1734199834069,-446.06922639,0.00021095,3]
[345372097,1734199834078,-394.31107929,0.00021095,3]
[345372099,1734199834087,-500.0,0.00021095,3]
[345372101,1734199834097,-500.0,0.00021095,3]
[345372103,1734199834106,-500.0,0.00021095,3]
[345372105,1734199834115,-500.0,0.00021095,3]
[345372107,1734199834124,-500.0,0.00021095,3]
[345372109,1734199834134,-500.0,0.00021095,3]
[345372111,1734199834144,-500.0,0.00021095,3]
[345372113,1734199834154,-500.0,0.00021095,2]
[345372114,1734199834164,-500.0,0.00021095,2]
[345372116,1734199834174,-500.8112839,0.00021095,3]
[345372118,1734199834184,-256.48640249,0.00021095,3]
[345372120,1734199834193,-500.0,0.00021095,3]
[345372123,1734199834203,-500.0,0.00021095,3]
[345372125,1734199834213,-500.0,0.00021095,3]
[345372127,1734199834223,-526.22,0.00021095,3]
[345372129,1734199834233,-556.14,0.00021095,3]
[345372130,1734199834242,-500.0,0.00021095,3]
[345372133,1734199834252,-500.0,0.00021095,3]
[345372135,1734199834263,-500.0,0.00021095,3]
[345372137,1734199834272,-500.0,0.00021095,3]